{"text_format":"1","workbook":"xlsx","n_sheets":5,"sheets":["PRESENTACIÓN","INSTRUCCIONES","ENCUESTA","RESPUESTAS","GRÁFICOS"],"not_rendered":{"charts":7,"images":6,"macros":1,"external_links":0,"defined_names":0,"comments":0,"pivot_tables":0},"unopened":[],"bounds":{"document_bytes":16777216,"sheet_cells":100000,"rows_first":2000,"rows_last":500,"rows_between":2000,"halvings":0,"cell_chars":16384,"cell_head_chars":4096},"cells_cut":0,"cells_raw":0,"read":"whole","date_system":"1900"}

{"sheet":"PRESENTACIÓN","index":0,"n_rows":0,"n_cols":0,"rows_kept":0,"cut":false,"hidden":false,"merged":[]}

{"sheet":"INSTRUCCIONES","index":1,"n_rows":0,"n_cols":0,"rows_kept":0,"cut":false,"hidden":false,"merged":[]}

{"sheet":"ENCUESTA","index":2,"n_rows":63,"n_cols":16,"rows_kept":63,"cut":false,"hidden":false,"merged":[[54,4,54,6],[55,4,55,6],[10,3,10,8],[51,3,51,8],[47,3,47,8],[42,3,42,8],[34,3,34,8],[29,3,29,8],[16,3,16,8],[18,3,18,8],[23,3,23,8],[38,3,38,8],[56,4,56,6],[62,4,62,6],[57,4,57,6],[58,4,58,6],[59,4,59,6],[60,4,60,6],[61,4,61,6]]}
[]
[]
[null,null,null,null,null,null,null,null,null,null,null,null,"género ","Femenino",null,"Honorario"]
[null,null,null,"Género",null,null,null,null,null,null,null,"a",null,"Masculino",null,"Contrata"]
[null,null,null,"Calidad Jurídica",null,null,null,null,null,null,null,"b",null,null,"Rural","Planta"]
[null,null,null,"Escalafón",null,null,null,null,null,null,null,"c",null,null,"Urbana"]
[null,null,null,"Rango de Edad",null,null,null,null,null,null,null,"d",null,null,"Mixta","Directivo"]
[null,null,null,null,null,null,null,null,null,null,null,"e",null,null,null,"Profesional"]
[null,null,null,"Preguntas generales",null,null,null,null,null,null,null,"f","Nivel de ingreso hogar",null,"160<","Técnico"]
[null,null,null,null,null,null,null,null,null,null,null,"g",null,null,"160-300","Administrativo"]
[null,null,null,"1.- ¿Cuál de las siguientes instituciones, cree usted, que es la responsanble de elaborar las ordenanzas ambientales?",null,null,null,null,null,null,null,"h",null,null,"301-600","Auxiliar"]
[null,null,null,null,null,null,null,null,null,null,null,"i",null,null,"601-2000"]
[null,null,null,null,null,null,null,null,null,null,null,"j",null,null,">2000"]
[null,null,null,null,null,null,null,null,null,null,null,"k"]
[null,null,null,"Preguntas del ámbito municipal y comunal"]
[null,null,null,null,null,null,null,null,null,null,null,1,"Rango de edad ",null,"16 - 20"]
[null,null,null,"2.- Considerando que el patrimonio está compuesto por la herencia que recibimos y que transmitimos a nuestra descendencia, y que formas parte de la identidad o lo más representativo de una comuna.",null,null,null,null,null,null,null,2,null,null,"21 - 30"]
[null,null,null,null,null,null,null,null,null,null,null,3,null,null,"31- 40"]
[null,null,null,"a) ¿Podría mencionar, a su juicio, qué es lo más representativo del Patrimonio Natural de su comuna? (puede ser un lugar en particular, una planta o animal, algún elemento del paisaje, etc.)",null,null,null,null,null,null,null,4,null,null,"41 - 50"]
[null,null,null,null,null,null,null,null,null,null,null,5,null,null,"51 - 60"]
[null,null,null,"a.1) En primer lugar:",null,null,null,null,null,null,null,6,null,null,"61 o más"]
[null,null,null,"a.2) En segundo lugar: ",null,null,null,null,null,null,null,7]
[null,null,null,null,null,null,null,null,null,null,null,8]
[null,null,null,"b) ¿Podría mencionar, a su juicio, qué es lo más representativo del Patrimonio Cultural de su comuna? "]
[null,null,null,null,null,null,null,null,null,null,null,null,"p1  ","a) El Congreso"]
[null,null,null,"b.1) Patrimonio cultural material (una construcción, una obra artística, etc.):",null,null,null,null,null,null,8,null,null,"b) La Superintendencia del medioambiente"]
[null,null,null,"b.2) Patrimonio cultural inmaterial (una costumbre, rito, conocimiento, leyenda, etc.)",null,null,null,null,null,null,"Buena",null,null,"c) El Municipio"]
[null,null,null,null,null,null,null,null,null,null,"Regular",null,null,"d) El Ministerio del  medio ambiente"]
[null,null,null,null,null,null,null,null,null,null,"Mala",null,null,"e) ministerio de salud"]
[null,null,null,"3.- El cambio climático afectará en su comuna principalmente a los siguientes ámbitos (marcar los más relevantes):",null,null,null,null,null,null,"Muy Mala",null,null,"f) No lo sé"]
[null,null,null,null,null,null,null,null,null,null,null,null,"p2","a)  Legal que permite normar y sancionar conductas ambientales de las empresas y el comercio."]
[null,null,null,3.1,null,null,"3.1   Otro,  en caso de opción 7:",null,null,null,null,null,null,"b)  Administrativo que permite normar y sancionar conductas ambientales de las personas."]
[null,null,null,3.2,null,null,"3.2   Otro,  en caso de opción 7:",null,null,null,null,null,null,"c)  Jurídico que permite normar y sancionar conductas ambientales de la comunidad."]
[null,null,null,null,null,null,null,null,null,null,"Muy Mal",null,null,"d)  Financiero que permite normar y sancionar conductas ambientales de las personas. "]
[null,null,null,"4.- Ante la siguiente aformación: \"mis colegas están muy preocupados por temas ambientales\", usted estaría:",null,null,null,null,null,null,"Mal",null,null,"e) No lo  sé"]
[null,null,null,null,null,null,null,null,null,null,"Ni mal ni bien"]
[null,null,null,null,null,null,null,null,null,null,"Bien",null,null,"c) Alguna vez al mes"]
[null,null,null,null,null,null,null,null,null,null,"Muy Bien",null,null,"d)rara vez"]
[null,null,null,"5.- Y respecto del territorio de la comuna, usted cree que la situación medio ambiental en los últimos 5 años ha:",null,null,null,null,null,null,"No Sabe / No responde",null,null,"e)Nunca"]
[]
[null,null,null,null,null,null,null,null,null,null,null,null,null,"Totalmente de acuerdo"]
[null,null,null,null,null,null,null,null,null,null,1,null,null,"Más bien de acuerdo"]
[null,null,null,"6.- ¿Cuáles son los problemas ambientales que más afectan su comuna?. Priorice dos, según su gravedad. ",null,null,null,null,null,null,2,null,null,"Más bien en desacuerdo"]
[null,null,null,null,null,null,null,null,null,null,3,null,null,"Totalmente en desacuerdo"]
[null,null,null,"9.1",null,null,"9.1.1   Otro, en caso de opción k:",null,null,null,4,null,null,"Lo ignoro"]
[null,null,null,"9.2",null,null,"9.2.1   Otro, en caso de opción k:",null,null,null,5]
[null,null,null,null,null,null,null,null,null,null,"No sabe / No responde"]
[null,null,null,"7.- Cómo evaluaría la contribución que hace el municipio a la protección o cuidado del medio ambiente en su comuna:",null,null,null,null,null,null,null,null,null,"Totalmente de acuerdo"]
[null,null,null,null,null,null,null,null,null,null,null,null,null,"Más bien de acuerdo"]
[null,null,null,null,null,null,null,null,null,null,null,null,null,"Más bien en desacuerdo"]
[null,null,null,null,null,null,null,null,null,null,null,null,null,"Totalmente en desacuerdo"]
[null,null,null,"8.-  En una escala de 1 a 5, donde 1 significa \"muy mal\" y 5 \"muy bien\", ¿Cómo evalúa en la práctica los siguientes servicios municipales?",null,null,null,null,null,null,null,null,null,"No se pronuncia"]
[]
[null,null,null,null,"a) Retiro de residuos sólidos domiciliarios (o basura)",null,null,null,null,null,null,null,null,"Mejorado"]
[null,null,null,null,"b) Mantención de áreas verdes",null,null,null,null,null,null,null,null,"Mantenido"]
[null,null,null,null,"c) Mantención del entorno limpio",null,null,null,null,null,null,null,null,"Empeorado"]
[null,null,null,null,"d) Retiro y prevención de microbasurales",null,null,null,null,null,null,null,null,"No sé"]
[null,null,null,null,"e) Fiscalización ambiental"]
[null,null,null,null,"f) Gestión en fomento de tenencia responsable de mascotas.",null,null,null,null,null,null,null,null,"Totalmente de acuerdo"]
[null,null,null,null,"g) Atención de denuncias ambientales (sólo si ha denunciado)",null,null,null,null,null,null,null,null,"Más bien de acuerdo"]
[null,null,null,null,"h) Retiro de escombros generados en el domicilio. (sólo si ha solicitado)",null,null,null,null,null,null,null,null,"Más bien en desacuerdo"]
[null,null,null,null,"i) Otros (agregar si el municipio quiere evaluar otros servicios)",null,null,null,null,null,null,null,null,"Totalmente en desacuerdo"]
[null,null,null,null,null,null,null,null,null,null,null,null,null,"No sabe / No responde"]

{"sheet":"RESPUESTAS","index":3,"n_rows":109,"n_cols":30,"rows_kept":109,"cut":false,"hidden":false,"merged":[]}
[]
[null,"GÉNERO","CALIDAD JURÍDICA","ESCALAFÓN","RANGO DE EDAD ","P1","P2a.1","P2a.2","P2b.1","P2b.2","P3.1","P3.1.1","P3.2","P3.2.1","P4","P5","P6.1","P6.1.1","P6.2","P6.2.1","P7","P8.a","P8.b","P8.c","P8.d","P8.e","P8.f","P8.g","P8.h","P8.i"]
[null,"Masculino","Planta","Técnico","31- 40","c",null,null,null,null,1,null,2,null,"b","d","h",null,"i",null,"c",4,4,3,2,3,3,"No sabe / No responde","No sabe / No responde","No sabe / No responde"]
[null,"Femenino","Planta","Administrativo","41 - 50","c","Cuesta Barriga","Carbonera","Casa ejercicios","Cuasimodo",1,null,6,null,"b","c","d",null,"g",null,"c",2,4,3,2,3,3,5,"No sabe / No responde","No sabe / No responde"]
[null,null,"Planta","Administrativo","41 - 50","c","Cuesta Barriga","Carbonera","Casa de reposo San Ignacio Loyola",null,1,null,2,null,"b","b","b",null,"g",null,"b",3,3,4,3,3,3,"No sabe / No responde",4,"No sabe / No responde"]
[null,"Femenino","Planta","Técnico","41 - 50","c","Cuesta Barriga","Todo el sector rural","Casa ejercicios Ignacio Loyola","Historia de Marruecos",1,null,2,null,"d","c","d",null,"h",null,"c",1,4,3,1,1,3,4,1,"No sabe / No responde"]
[null,null,null,null,null,null,"Zona Rural",null,"Feria Costumbrista","La carbonera",1,null,6,null,"b","b","b",null,"d",null,"c",5,5,5,5,3,3,3,4,"No sabe / No responde"]
[null,null,null,null,null,"b","Zona Rural","Camino Melipilla","Carbonera","Feria Costumbrista",1,null,6,null,"b","b","b",null,"d",null,"c",5,5,5,5,3,3,3,5,"No sabe / No responde"]
[null,null,null,null,null,"d","Rural","Camino melipilla","Feria Costumbrista","Carbonera",1,null,6,null,"b","b","b",null,"d",null,"c",4,5,5,5,3,3,3,4,"No sabe / No responde"]
[null,"Masculino","Planta","Profesional","31- 40","c","Cuesta Barriga","Sector rural","Casa de Ejercicios",null,2,null,6,null,"a","a","g",null,"i",null,"b",4,5,4,4,3,3,"No sabe / No responde","No sabe / No responde","No sabe / No responde"]
[null,null,null,null,null,"d",null,null,null,null,1,null,6,null,"d","c","a",null,"d",null,"c",3,2,4,1,4,1,2,5,"No sabe / No responde"]
[null,"Femenino","Contrata","Administrativo","21 - 30","d",null,null,null,null,1,null,2,null,"d","c","b",null,"h",null,"c",5,2,3,1,1,2,"No sabe / No responde","No sabe / No responde",4]
[null,"Masculino","Planta","Profesional","31- 40",null,"Cuesta Barriga","Tiuques","Casa Kaplan",null,2,null,4,null,"b","c","g",null,"h",null,"c",2,1,1,1,1,3,"No sabe / No responde",3,"No sabe / No responde"]
[null,"Masculino","Honorario","Técnico","31- 40","a","Cuesta Barriga","Carbonera","Casa de ejercicios",null,1,null,4,null,"a","c","b",null,"g",null,"b",5,5,5,5,4,3,4,4,"No sabe / No responde"]
[null,null,null,null,"41 - 50","c","Mirador Cuesta Barriga","Bosque nativo sector rural","Casa de retiro san ignacio loyola","Ferias",1,null,6,null,"c","c","d",null,"i",null,"c",4,4,2,2,2,2,"No sabe / No responde","No sabe / No responde","No sabe / No responde"]
[null,null,null,null,"41 - 50","c","Flora y Fauna cuesta barriga","Parque Carbonera","Iglesia San Ignacio","Celebración fiestas patrias",1,null,6,null,"c","d","a",null,"d",null,"c",4,3,3,2,2,3,"No sabe / No responde","No sabe / No responde","No sabe / No responde"]
[null,"Femenino",null,"Técnico","51 - 60","d","Escuela Republica Argentina",null,null,null,2,null,4,null,"b","a","f",null,"i",null,"b",4,4,3,3,3,3,"No sabe / No responde","No sabe / No responde","No sabe / No responde"]
[null,"Femenino","Planta","Profesional","41 - 50","a","Sector rural",null,"Casa ejercicios san ignacio","Historia de la fundación de Padre Hurtado",1,null,4,null,"a","c","b",null,"d",null,"b",5,3,4,4,3,4,"No sabe / No responde",5,5]
[null,null,"Planta","Profesional","41 - 50","c","Cuesta Barriga","Padre Hurtado","Iglesia santa rosa","Ritos religiosos",4,null,6,null,"a","c","d",null,"g",null,"b",5,5,4,4,4,5,2,4,"No sabe / No responde"]
[null,"Femenino","Planta","Técnico","51 - 60","c","Cuesta Barriga",null,"Plaza de armas","La estación de trenes",null,null,null,null,"b","b","d",null,"g",null,"c",3,3,4,"No sabe / No responde",3,3,"No sabe / No responde",4,"No sabe / No responde"]
[null,"Femenino","Contrata","Administrativo","41 - 50","b","Paisaje","Cuesta","La carbonera","Celebracion cuasimodo",1,null,4,null,"a","b","g",null,"i",null,"b",5,4,4,5,3,3,3,4,"No sabe / No responde"]
[null,null,null,null,null,"f","Cuesta Barriga",null,null,null,4,null,6,null,"d","c","d",null,"g",null,"c",5,3,3,3,3,1,3,4,"No sabe / No responde"]
[null,"Masculino","Planta","Administrativo","21 - 30","c","Padre Hurtado","Cristaleria Chile","La Camioneta Verde","Cuasimodo",null,"Areas verdes",null,null,"c","b","d",null,"g",null,"c",4,4,4,4,3,3,3,"No sabe / No responde","No sabe / No responde"]
[null,"Masculino","Contrata","Profesional","31- 40","c","Padre Hurtado","Municipio","Padre Hurtado","Municipalidad",1,null,6,null,"a","c","b",null,"d",null,"c",1,2,2,2,3,1,2,2,"No sabe / No responde"]
[null,null,null,null,null,"c","Cuesta Barriga","Sector Rural","Casa Ejercicios","Historia comuna",3,null,6,null,"b","c","b",null,"j",null,"d",2,4,3,1,1,3,4,2,"No sabe / No responde"]
[null,null,null,null,null,"b",null,null,"Casa Retiro Ignacio de Loyola","Cuasimodo",1,null,null,null,"a","b","b",null,"g",null,"b",5,4,4,5,3,2,4,4,"No sabe / No responde"]
[null,null,null,null,null,"e","Un sauce","un perro","La Municipalidad",null,6,null,null,null,"b","a","d",null,"e",null,"c",1,1,3,4,2,4,4,4,"No sabe / No responde"]
[null,null,null,null,null,"d","Carbonera","Cuesta Barriga","Casa de ejercicio","cuacimodo",4,null,6,null,"b","b","g",null,"h",null,"b",4,5,5,4,4,3,3,4,"No sabe / No responde"]
[null,null,null,null,null,null,"La Carbonera","Escuela republica argentina","La Carbonera","Semana Santa Rosina",1,null,2,null,"b","c","g",null,"h",null,"d",1,1,1,1,1,1,1,1,1]
[null,null,null,null,null,"d","Cuesta barriga","sector rural","Casa kaplan","Feria navideña",4,null,6,null,"a","b","b",null,"g",null,"c",4,5,3,4,2,4,"No sabe / No responde",5,"No sabe / No responde"]
[null,"Masculino","Planta","Profesional","41 - 50","d",null,null,null,null,2,null,6,null,"a","b","g",null,null,null,"c",4,5,5,3,3,3,5,5,5]
[null,"Femenino","Planta","Técnico","21 - 30","b","Cuesta Barriga",null,"Casa de acogida ","Carbonera",4,null,6,null,"a","b","g",null,"i",null,"c",4,5,5,4,2,2,3,5,5]
[null,"Femenino","Planta","Administrativo","16 - 20","d","La Plaza de Armas","La cuesta barriga","La Carbonera","Sistema de tuneles de la iglesia",4,null,null,null,"b","c","a",null,null,null,"b",5,4,"No sabe / No responde","No sabe / No responde","No sabe / No responde",3,"No sabe / No responde","No sabe / No responde","No sabe / No responde"]
[null,"Femenino","Planta","Profesional","41 - 50","c","Cuesta Barriga",null,"Casa de Ejercicio Jesuita","Cuasimodo",1,null,2,null,"c","b","b",null,"g",null,"b",4,5,5,4,3,2,4,4,"No sabe / No responde"]
[null,"Femenino","Honorario",null,"31- 40","c","Cuesta Barriga",null,"Casa de ejercicio jesuita","Fiesta cuasimodo",5,null,null,null,"c","b","b",null,"i",null,"b",4,5,5,4,3,2,3,4,"No sabe / No responde"]
[null,"Femenino","Planta","Directivo","31- 40","d","Cuesta Barriga",null,"Casa de ejercicios",null,2,null,3,null,"a","c","a",null,"g",null,"d",5,5,4,2,2,2,"No sabe / No responde",4,"No sabe / No responde"]
[null,null,"Planta","Técnico","41 - 50","a","Cuesta Barriga","Codorniz","Carbonera","Jugar Rayuela",1,null,2,null,"a","c","d",null,"e",null,"c",4,4,"No sabe / No responde",4,4,5,4,4,"No sabe / No responde"]
[null,null,null,null,null,"c","Las Carboneras","Casa de Retiro San Ignacio",null,null,1,null,2,null,"c","a","g",null,"i",null,"b",4,4,3,3,"No sabe / No responde","No sabe / No responde","No sabe / No responde","No sabe / No responde","No sabe / No responde"]
[null,"Femenino","Planta","Administrativo",null,"c","Cuesta Barriga",null,"Casa de Ejercicios","Zona Rural",2,null,4,null,"c",null,"c",null,"g",null,"b",4,5,4,4,"No sabe / No responde",3,"No sabe / No responde",4,"No sabe / No responde"]
[null,"Masculino","Planta","Técnico","51 - 60","d","La imagen de Padre Hurtado casa de ejercicios Ignacio Loyola",null,"Casa Ejercicio Ignacio Loyola",null,1,null,6,null,"b","b","b",null,"d",null,"b",5,5,5,4,5,4,5,5,"No sabe / No responde"]
[null,"Femenino","Planta","Técnico","31- 40","d","Sector Rural",null,"Centro de espiritualidad San Ignacio de Loyola","Sector Rural (La esperanza , San Luis)",2,null,6,null,"c","c","b",null,"g",null,"c",4,4,4,4,3,4,3,4,"No sabe / No responde"]
[null,null,null,null,"31- 40","c","Sector Rural","Los Habitantes","La actual Municipalidad","Las Ferias Libres",2,null,4,null,"d","b","g","Caminos en mal estado","h","Suciedad en espacios concurridos","b",3,4,4,5,1,3,3,4,"No sabe / No responde"]
[null,"Masculino","Planta","Directivo","31- 40","c","La Carbonera","El Sector Rural","La Carbonera","El Padre Alberto Hurtado",1,null,6,null,"c","b","g",null,"h",null,"b",4,4,4,4,2,4,3,4,"No sabe / No responde"]
[null,"Femenino","Contrata","Profesional","31- 40","c","Que aun es una comuna rural","La cuesta el trebal","Obra del Padre Hurtado","El Dalmata",4,null,null,null,"c","b","d",null,"g",null,"b",5,5,5,5,4,4,"No sabe / No responde","No sabe / No responde","No sabe / No responde"]
[null,"Femenino","Planta","Técnico","41 - 50","d","Sector Rural",null,"Ejercicio Jesuitas",null,2,null,6,null,"a","b","d",null,"g",null,"b","No sabe / No responde",5,4,5,"No sabe / No responde",3,"No sabe / No responde","No sabe / No responde","No sabe / No responde"]
[null,"Masculino","Honorario","Técnico","21 - 30","d",null,null,null,null,2,null,3,null,"c","b","e",null,"f",null,"c",3,3,3,4,2,2,2,4,"No sabe / No responde"]
[null,"Femenino","Honorario","Profesional","31- 40","c","No hay uno representativo definido como tal","Las areas verdes y parques","Parque el manzano","Parque las carboneras",4,null,6,null,"c","b","c",null,"g",null,"c",4,4,4,4,3,3,3,3,"No sabe / No responde"]
[null,"Femenino","Planta","Técnico","41 - 50","c","Plaza de armas","Casa Kaplan","Edificio Consistorial","Actividad de los Mapuches Plaza de Armas",4,null,6,null,null,"d","g",null,"h",null,"d",3,4,4,1,1,2,5,5,"No sabe / No responde"]
[null,"Femenino","Planta","Profesional","31- 40","c","Cuesta Barriga",null,"La Carbonera","Folcklore",2,null,6,null,"c","b","g",null,"i",null,"c",3,3,4,4,1,2,"No sabe / No responde","No sabe / No responde","No sabe / No responde"]
[null,"Masculino","Planta","Profesional","31- 40","c","Cuesta Barriga",null,"Lecheria Santa Cruz","Cueca Folklor",2,null,6,null,"a","c","b",null,"d",null,"c",4,4,5,4,3,3,"No sabe / No responde","No sabe / No responde","No sabe / No responde"]
[null,"Masculino","Contrata","Administrativo","16 - 20","b","La cuesta barriga","Plaza de armas","Casa Kaplan","Reuniones junta de vecinos",1,null,4,null,"b","b","g",null,"i",null,"b",5,4,4,3,4,4,"No sabe / No responde",5,"No sabe / No responde"]
[null,"Femenino","Planta",null,"51 - 60","b","Carbonera","Sector Rural",null,"Su gente y tradiciones",2,null,6,null,"c","a","f",null,"g",null,"c",3,4,4,2,2,4,3,4,"No sabe / No responde"]
[null,"Femenino","Planta","Administrativo","21 - 30","b","Area verde dentro de la Municipalidad","Cuesta Barriga","Carbonera","Astrid, la niña hermosa",8,null,null,null,"c","a","e",null,"i",null,"c",5,4,3,3,2,4,"No sabe / No responde","No sabe / No responde","No sabe / No responde"]
[null,"Femenino","Planta","Directivo","41 - 50","c","Cuesta Barriga","Sector Rural","Puente Esperanza",null,4,null,6,null,"c","c","b",null,"c",null,"c",3,4,4,4,"No sabe / No responde","No sabe / No responde","No sabe / No responde",2,"No sabe / No responde"]
[null,"Masculino","Planta","Técnico","31- 40","d","Carbonera","Cuesta Barriga","Casa de ejercicios","Beber alcohol en las canchas",2,null,6,null,"b","a","g",null,"i",null,"b",5,4,4,4,3,2,"No sabe / No responde",3,"No sabe / No responde"]
[null,"Masculino","Honorario","Técnico","31- 40","b","Cuesta barriga","Rural","Carbonera","Cuacimodo",2,null,4,null,"b","b","c",null,"g",null,"c",4,4,4,4,3,2,3,3,"No sabe / No responde"]
[null,null,null,null,"41 - 50","c","Cuesta Barriga","Parques","Carboneras",null,2,null,4,null,"b","c","g",null,"h",null,"b",4,4,3,3,3,3,"No sabe / No responde",3,"No sabe / No responde"]
[null,"Masculino","Contrata",null,"31- 40","c","Cuesta Barriga","Ser una comuna rural en su mayoria","Casa Kaplan","El crecimiento de Padre Hurtado",2,null,null,null,"c","c","b",null,null,null,"b",4,3,3,3,2,2,3,"No sabe / No responde","No sabe / No responde"]
[null,"Femenino","Contrata","Administrativo","31- 40","b","Plaza de armas",null,null,null,4,null,6,null,"b","a","e",null,"i",null,"b",5,5,3,3,3,2,"No sabe / No responde",3,"No sabe / No responde"]
[null,"Masculino","Contrata","Profesional","21 - 30","c","Recursos Naturales",null,"Plaza de armas","Fiesta costumbrista",2,null,6,null,"b","b","d",null,"g",null,"d",4,5,4,2,2,2,3,4,"No sabe / No responde"]
[null,"Femenino","Planta","Profesional","41 - 50","c","Cuesta Barriga","Peuco","La Carbonera","Nombre de las calles",2,"Agricultura",null,null,"b","b","f",null,"g",null,"c",2,4,4,2,3,3,5,1,"No sabe / No responde"]
[null,"Femenino","Contrata","Administrativo","51 - 60","c","Casa de ejercicios San Ignacio de Loyola","Cuesta Barriga","Casa de ejercicios San Ignacio de Loyola","Feria Costumbrista",4,null,6,null,"c","b","g",null,"i",null,"b",4,5,4,3,2,2,5,"No sabe / No responde","No sabe / No responde"]
[null,"Femenino","Planta","Administrativo","31- 40","c","Cuesta Barriga","Sector Rural","Edificio Municipal","Ritos en Ruca Mapuche",6,null,8,null,"c","b","g",null,"i",null,"b",4,5,5,4,3,3,4,4,5]
[null,null,null,null,null,"d","Puente Ferroviario","Plaza","Cine","Artesanìa",2,null,3,null,"a","c","c",null,"g",null,null,4,4,"No sabe / No responde",3,3,"No sabe / No responde","No sabe / No responde","No sabe / No responde","No sabe / No responde"]
[null,"Femenino","Planta","Administrativo","51 - 60","c","Cuesta Barriga","Las Carboneras","Cuesta Barriga","Cuesta Barriga",3,null,6,null,"a","c","d",null,"f",null,"e",3,2,2,1,1,1,2,2,4]
[null,"Femenino","Planta","Administrativo","51 - 60","c","Mirador Cuesta Barriga","Carbonera","Casa Kaplan",null,2,null,6,null,"a","a","a",null,"f",null,"b",4,5,4,4,3,2,2,2,"No sabe / No responde"]
[null,"Masculino","Honorario","Profesional","61 o más","c","El Roble","Río Mapocho","Centro de espiritualidad loyola","Animitas",2,null,4,null,"b","c","d",null,"e",null,"c",4,3,3,3,3,3,"No sabe / No responde","No sabe / No responde","No sabe / No responde"]
[null,"Femenino","Planta","Profesional","31- 40","c","Cuesta Barriga","Variedad Especies de Árboles","Casa de Ejercicio","Animitas",1,null,2,null,"c","a","g",null,"i",null,"c",4,4,4,5,3,1,"No sabe / No responde",4,"No sabe / No responde"]
[null,"Femenino","Planta","Técnico","41 - 50","d","Carboneras","Cuesta Barriga","Carboneras","Peucodañe",4,null,6,null,"c","b","e",null,"g",null,"d",3,3,3,3,3,2,2,2,"No sabe / No responde"]
[null,null,null,null,null,"d","Cuesta Barriga",null,"Casa retiro Parroquia San Ignacio",null,1,null,6,null,"d","b","f",null,"i",null,"c",4,5,5,4,1,1,2,4,"No sabe / No responde"]
[null,"Femenino",null,"Administrativo","41 - 50","d","Parque Carbonera","Cuesta Barriga","Carbonera",null,2,null,6,null,"b","a","c",null,"h",null,"c",3,5,2,2,2,3,"No sabe / No responde",3,"No sabe / No responde"]
[null,"Masculino","Honorario","Profesional","31- 40","c","Cuesta Barriga","Sector Rural","Iglesia de Loyola",null,1,null,4,null,"a","d","d",null,"g",null,"b",4,4,4,"No sabe / No responde","No sabe / No responde",4,"No sabe / No responde",4,"No sabe / No responde"]
[null,"Masculino","Honorario",null,"16 - 20","c","Plaza de Armas",null,null,null,1,null,2,null,"d","c","g",null,"h",null,"e","No sabe / No responde",3,3,3,1,1,"No sabe / No responde","No sabe / No responde","No sabe / No responde"]
[null,"Masculino","Planta","Profesional","31- 40","c","Cuesta Barriga","Las Carboneras",null,null,1,null,2,null,"c","a",null,null,null,null,"c",4,4,4,3,3,3,"No sabe / No responde",2]
[null,"Femenino","Honorario","Administrativo","16 - 20","d",null,null,null,null,null,null,null,null,"b","c","e",null,"h",null,"c","No sabe / No responde",4,3,"No sabe / No responde",2,1,"No sabe / No responde","No sabe / No responde","No sabe / No responde"]
[null,null,null,null,null,"b","Parque Carbonera","Cuesta Barriga","Ruca y memoriales en cuesta barriga","Ruca indigena",1,null,2,null,"a","b","b",null,"d",null,null,4,5,4,5,4,4,5,5,4]
[null,"Masculino","Honorario","Profesional","31- 40","b","Cuesta Barriga","Rio Mapocho","Centro Espiritual Loyola","Religion",1,null,3,null,"a","c","d",null,"g",null,"b",4,4,4,3,3,4,"No sabe / No responde",4,"No sabe / No responde"]
[null,"Masculino","Honorario","Técnico","21 - 30","d","Carbonera","Plaza de Armas","Carbonera",null,4,null,6,null,"c","c","g",null,"i",null,"b",4,3,3,3,2,2,"No sabe / No responde","No sabe / No responde","No sabe / No responde"]
[null,"Masculino","Contrata","Administrativo","41 - 50","d","La Plaza de Armas","Plaza Esmeralda","Casa Kaplan","Estación de trenes santiago - cartagena ",4,null,6,null,"c","a","d",null,"g",null,"d",5,5,3,4,1,1,1,4,"No sabe / No responde"]
[null,"Masculino","Honorario","Profesional","21 - 30","b","Cuesta Barriga","Rio Mapocho","Parroquia san ignacio de loyola","Religión Catolica",1,null,3,null,"a","c","d",null,"g",null,"b",4,4,4,3,3,4,"No sabe / No responde",4,"No sabe / No responde"]
[null,null,null,null,null,"f","Cuesta Barriga",null,"Las Carboneras","Casa de retiro sam ignacio loyolo",2,null,6,null,"c","b","f",null,"g",null,"c",3,4,3,1,3,"No sabe / No responde","No sabe / No responde",4,"No sabe / No responde"]
[null,null,null,null,null,"c","La carbonera ",null,"La carbonera ",null,3,null,6,null,"a","c","d",null,"f",null,"c",4,5,4,4,4,3,"No sabe / No responde","No sabe / No responde","No sabe / No responde"]
[null,"Femenino","Honorario",null,"31- 40","c","Casa de ejercicios san ignacio de loyola","Sector rural","Casa de ejercicios san ignacio de loyola",null,4,null,6,null,"b","b","g",null,"i",null,"c",3,1,3,2,2,1,"No sabe / No responde",4,"No sabe / No responde"]
[null,"Femenino","Planta","Administrativo","41 - 50","b","Cuesta Barriga","El Trébal","Carbonera","Nos Conocemos todos en la comuna",4,null,6,null,"c","b","f",null,"g",null,"b",3,5,4,1,"No sabe / No responde",3,"No sabe / No responde",4,"No sabe / No responde"]
[null,"Femenino","Contrata","Administrativo","51 - 60","c","Nuestros Cerros y su Hábitat","El Río y su entorno","Casa de Ejercicios","Leyenda \"El Morro del Fraile\"",2,null,4,null,"a","a","b",null,"h",null,"b",4,5,3,3,3,4,"No sabe / No responde",3,"No sabe / No responde"]
[null,null,null,null,null,"d","Carbonera","Peuco","El Gato Verde","Feria Costumbrista",1,null,2,null,"c","a","g",null,null,null,"d",4,5,3,4,2,2,2,4,2]
[null,"Masculino","Planta","Administrativo","61 o más","d","Zona Rural","Plaza y áreas verdes","Casa de Retiro San Ignacio de Loyola","Marruecos",2,null,4,null,"b","c","d",null,"g",null,"c",1,4,2,3,1,2,3,2,3]
[null,"Masculino","Planta","Profesional","41 - 50","c","Cuesta Barriga",null,"Las Carboneras","El Cuasimodo",6,"Perdida del Bosque esclerofilo",null,null,"c","a","b",null,"h",null,"b",4,4,4,5,3,3,3,4,5]
[null,"Femenino","Planta","Profesional","41 - 50","c","Camino a Cuesta Barriga","Localidad Rural de la Esperanza","La Casa de Ejercicios del Padre Hurtado","La Feria Costumbrista de Octubre de cada año",1,null,2,null,"b","a","d",null,"e",null,"b",5,4,2,2,1,4,4,3,"No sabe / No responde"]
[null,"Femenino","Contrata","Administrativo","51 - 60","c","Cuesta Barriga","Sector Rural Padre Hurtado","Casa de ejercicios San Ignacio Loyola","Ruka Mapuche",3,null,6,null,"a","a","f",null,"g",null,"c",2,1,2,1,1,3,1,5,"No sabe / No responde"]
[null,"Masculino","Contrata","Técnico","41 - 50","c","Cuesta Barriga",null,"Casa de ejercicios San Ignacio Loyola","Feria Costumbrista",2,null,6,null,"a","a","e",null,"j",null,"b",4,4,4,4,4,4,4,4,4]
[null,"Masculino","Honorario","Profesional","21 - 30","c","Cuesta Barriga","La Carbonera","La Carbonera","Semana Santa Rosina",3,null,6,null,"c","a","e",null,"g",null,"b",5,4,3,3,1,1,"No sabe / No responde","No sabe / No responde","No sabe / No responde"]
[null,null,null,null,null,"d","Cuesta Barriga","Carboneras","Casa retiro","Semana Santa Rosina",2,null,4,null,"a","c","g",null,null,null,"b",4,3,3,4,2,3,4,4,4]
[null,"Masculino","Contrata","Profesional","21 - 30","c","La Carbonera","Cuesta Barriga","Casa Loyola de retiro","Paseos a Cuesta Barriga",2,null,6,null,"b","a","e",null,"g",null,"b",4,5,4,4,3,2,3,4,"No sabe / No responde"]
[null,"Femenino","Honorario","Técnico","51 - 60","c","Rehue de Plaza Mayor","Conservar el nombre Mapuche  \"Peuco Dañe\" o Marrueco","Escultura Representativa Mapuche","Batucadas de Verano / Chinchineros",1,null,2,null,"a","b","g",null,"i",null,"c",5,3,3,3,4,3,4,4,"No sabe / No responde"]
[null,"Femenino","Honorario","Administrativo","31- 40","d","Cuesta Barriga","Puente Esperanza","Edificio Consistorial","Costumbres Campesinas",2,null,6,null,"b","c","e",null,"h",null,"c",4,4,3,3,2,3,3,4,4]
[null,"Femenino","Contrata","Profesional","31- 40","c","Rio Mapocho","Cerro El Roble","Puente Esperanza","Las Carboneras",1,null,2,null,"c","c","g",null,"h",null,"e",4,3,3,2,1,2,"No sabe / No responde","No sabe / No responde","No sabe / No responde"]
[null,"Masculino","Planta","Auxiliar","41 - 50","c","La Carbonera","Los Peucos","Casa de Ejercicios","Monolioto desaparecidos cuesta barriga",2,null,6,null,"b","b","f",null,"g",null,"c",4,5,4,2,2,2,"No sabe / No responde",4,"No sabe / No responde"]
[null,"Femenino","Honorario","Profesional","41 - 50","c","Cuesta Barriga","Casa de Ejercicios","Remodelación de la carbonera","Semana Padre Hurtadina",1,null,6,null,"c","c","f","Ampliación de la Laguna del Sol","i",null,"c",3,5,3,3,3,2,"No sabe / No responde","No sabe / No responde","No sabe / No responde"]
[null,"Masculino","Honorario","Profesional","31- 40","b","Cuesta Barriga",null,"La Carbonera","Feria Costumbrista",1,null,6,null,"a","b","c",null,"d",null,"b",5,5,5,5,4,4,4,4,"No sabe / No responde"]
[null,"Masculino",null,null,null,"a",null,null,null,null,4,null,null,null,"a","a","a",null,"b",null,"a",1,1,1,1,1,1,1,1,1]
[null,"Femenino","Planta","Técnico","41 - 50","c","Cuesta Barriga","Rio Mapocho (Puente Esperanza)","Casa de Ejercicio","Feria Costumbrista",1,null,6,null,"a","a","b",null,"g",null,"c",5,5,5,4,4,4,"No sabe / No responde",5,"No sabe / No responde"]
[null,"Masculino","Contrata","Profesional","31- 40","c","La Esperanza","Los Corrales","Camino a Valparaiso","Agricultura",1,null,6,null,"b","c","d",null,"e",null,"b",4,4,4,3,3,4,"No sabe / No responde","No sabe / No responde","No sabe / No responde"]
[null,"Masculino","Contrata","Profesional","31- 40","c","Cuesta Barriga",null,"Centro civico",null,2,null,6,null,"b","d","f",null,"h",null,"c","No sabe / No responde",4,4,"No sabe / No responde","No sabe / No responde","No sabe / No responde","No sabe / No responde","No sabe / No responde","No sabe / No responde"]
[null,null,null,null,null,"c","Los perros en la calle - sin caniles","Las personas en calle - sin albergue","San Ignacio de Loyola","Ferias Libres",null,"Todas",null,null,"c","c","f",null,"i",null,"c",5,5,5,2,2,1,2,4,"No sabe / No responde"]
[null,"Femenino","Planta","Profesional","31- 40","c","Área verde de casa Kaplan","Parque de la carbonera","Casa Kaplan","Padre Hurtado",2,null,6,null,"b","c","a",null,"g",null,"c",4,4,4,3,3,3,"No sabe / No responde","No sabe / No responde","No sabe / No responde"]
[null,"Femenino","Planta","Profesional","51 - 60","d",null,null,null,null,2,null,6,null,"d","c","e",null,"g",null,"c",4,4,3,"No sabe / No responde",2,2,"No sabe / No responde","No sabe / No responde","No sabe / No responde"]
[null,"Masculino","Contrata","Profesional","51 - 60","d","Zona Rural","Cuenca Rio Mapocho","Las Carboneras","Residencia y hogar compañía de jesus (Alberto Hurtado)",2,null,6,null,"c","b","g",null,"h",null,"c",3,4,3,2,2,3,3,2,"No sabe / No responde"]
[null,"Masculino","Contrata","Profesional","21 - 30","d","Cuesta de Barriga","Las Carboneras","Casa de ejercicios espirituales San Ignacio de Loyola","Padre Alberto Hurtado",2,null,6,null,"b","c","a",null,"d",null,"c",4,4,4,4,3,2,3,4,"No sabe / No responde"]

{"sheet":"GRÁFICOS","index":4,"n_rows":196,"n_cols":14,"rows_kept":196,"cut":false,"hidden":false,"merged":[[150,2,150,6],[149,2,149,6],[124,2,124,14],[35,2,35,4],[36,2,36,4],[39,2,39,4],[40,2,40,4],[41,2,41,4],[195,2,195,15],[158,2,158,6],[160,2,160,6],[162,2,162,6],[164,2,164,6],[166,2,166,6],[167,2,167,6],[159,2,159,6],[161,2,161,6],[163,2,163,6],[165,2,165,6],[157,2,157,6],[152,2,152,6],[154,2,154,6],[156,2,156,6],[151,2,151,6],[153,2,153,6],[155,2,155,6],[5,2,5,14],[27,2,27,14],[11,2,11,5],[147,2,147,14],[130,2,130,4],[82,2,82,4],[98,2,98,14],[107,2,107,5],[25,2,25,14],[37,2,37,4],[38,2,38,4],[59,2,59,4],[76,2,76,14],[34,2,34,4],[42,2,42,4],[52,2,52,14]]}
[]
[]
[null,"I.- ANÁLISIS DE RESULTADOS"]
[]
[]
[null,null,"1.- ¿Cuál de las siguientes instituciones, cree usted, que es la responsanle de elaborar las ordenanzas ambientales?"]
[]
[]
[]
[]
[]
[null,null,"Detalle",null,null,null,"Conteo"]
[null,"a","a) El Congreso",null,null,null,{"$f":"COUNTIF(RESPUESTAS!F:F,GRÁFICOS!B13)","v":4}]
[null,"b","b) La Superintendencia del medioambiente",null,null,null,{"$f":"COUNTIF(RESPUESTAS!F:F,GRÁFICOS!B14)","v":14}]
[null,"c","c) El Municipio",null,null,null,{"$f":"COUNTIF(RESPUESTAS!F:F,GRÁFICOS!B15)","v":55}]
[null,"d","d) El Ministerio del  medio ambiente",null,null,null,{"$f":"COUNTIF(RESPUESTAS!F:F,GRÁFICOS!B16)","v":28}]
[null,"e","e) El Ministerio de salud",null,null,null,{"$f":"COUNTIF(RESPUESTAS!F:F,GRÁFICOS!B17)","v":1}]
[null,"f","f) No lo sé",null,null,null,{"$f":"COUNTIF(RESPUESTAS!F:F,GRÁFICOS!B18)","v":2}]
[]
[]
[]
[]
[]
[]
[]
[null,null,"2.- Para la pregunta 2 se deben presentar tablas de frecuencia."]
[]
[null,null,"3.- El cambio climático afectará en su comuna principalmente a los siguientes ámbitos (marcar los más relevantes):"]
[]
[]
[]
[]
[]
[]
[null,null,"Detalle",null,null,"Conteo"]
[null,1,"La salud de las personas",null,null,{"$f":"SUM(COUNTIF(RESPUESTAS!K:K,GRÁFICOS!B36),COUNTIF(RESPUESTAS!M:M,GRÁFICOS!B36))","v":39}]
[null,2,"El equilibrio del medio ambiente (ecosistemas)",null,null,{"$f":"SUM(COUNTIF(RESPUESTAS!K:K,GRÁFICOS!B37),COUNTIF(RESPUESTAS!M:M,GRÁFICOS!B37))","v":52}]
[null,3,"Las actividades económicas",null,null,{"$f":"SUM(COUNTIF(RESPUESTAS!K:K,GRÁFICOS!B38),COUNTIF(RESPUESTAS!M:M,GRÁFICOS!B38))","v":10}]
[null,4,"La recurrencia de incendios forestales",null,null,{"$f":"SUM(COUNTIF(RESPUESTAS!K:K,GRÁFICOS!B39),COUNTIF(RESPUESTAS!M:M,GRÁFICOS!B39))","v":33}]
[null,5,"La recurrencia de aluviones",null,null,{"$f":"SUM(COUNTIF(RESPUESTAS!K:K,GRÁFICOS!B40),COUNTIF(RESPUESTAS!M:M,GRÁFICOS!B40))","v":1}]
[null,6,"La prolongación de la sequía",null,null,{"$f":"SUM(COUNTIF(RESPUESTAS!K:K,GRÁFICOS!B41),COUNTIF(RESPUESTAS!M:M,GRÁFICOS!B41))","v":59}]
[null,7,"Otro",null,null,{"$f":"SUM(COUNTIF(RESPUESTAS!K:K,GRÁFICOS!B42),COUNTIF(RESPUESTAS!M:M,GRÁFICOS!B42))","v":0}]
[null,8,"No sé",null,null,{"$f":"SUM(COUNTIF(RESPUESTAS!K:K,GRÁFICOS!B43),COUNTIF(RESPUESTAS!M:M,GRÁFICOS!B43))","v":2}]
[]
[]
[]
[]
[]
[]
[]
[]
[]
[null,null,"4.- Ante la siguiente aformación: \"mis colegas están muy preocupados por temas ambientales\", usted estaría:"]
[]
[]
[]
[]
[]
[]
[null,null,"Detalle",null,null,"Conteo"]
[null,"a","Totalmente de acuerdo",null,null,{"$f":"COUNTIF(RESPUESTAS!O:O,B61)","v":30}]
[null,"b","Más bien de acuerdo",null,null,{"$f":"COUNTIF(RESPUESTAS!O:O,B62)","v":35}]
[null,"c","Más bien en desacuerdo",null,null,{"$f":"COUNTIF(RESPUESTAS!O:O,B63)","v":33}]
[null,"d","Totalmente en desacuerdo",null,null,{"$f":"COUNTIF(RESPUESTAS!O:O,B64)","v":8}]
[]
[]
[]
[]
[]
[]
[]
[]
[]
[]
[]
[]
[null,null,"5.- Y respecto del territorio de la comuna, usted cree que la situación medio ambiental en los últimos 5 años ha:"]
[]
[]
[]
[]
[]
[null,null,"Detalle",null,null,"Conteo"]
[null,"a","Mejorado",null,null,{"$f":"COUNTIF(RESPUESTAS!P:P,B84)","v":23}]
[null,"b","Mantenido",null,null,{"$f":"COUNTIF(RESPUESTAS!P:P,B85)","v":38}]
[null,"c","Empeorado",null,null,{"$f":"COUNTIF(RESPUESTAS!P:P,B86)","v":40}]
[null,"d","No sé",null,null,{"$f":"COUNTIF(RESPUESTAS!P:P,B87)","v":5}]
[]
[]
[]
[]
[]
[]
[]
[]
[]
[]
[]
[null,null,"6.- ¿Cuáles son los problemas ambientales que más afectan su comuna?. Priorice dos, según su gravedad. "]
[]
[]
[]
[]
[null,null,null,null,null," "]
[]
[]
[]
[null,null,"Detalle",null,null,null,"Conteo1"]
[null,"a","Contaminación atmosférica",null,null,null,{"$f":"SUM(COUNTIF(RESPUESTAS!Q:Q,GRÁFICOS!B109),COUNTIF(RESPUESTAS!S:S,GRÁFICOS!B109))","v":8}]
[null,"b","Contaminación por olores",null,null,null,{"$f":"SUM(COUNTIF(RESPUESTAS!Q:Q,GRÁFICOS!B110),COUNTIF(RESPUESTAS!S:S,GRÁFICOS!B110))","v":23}]
[null,"c","Contaminación acústica (ruidos)",null,null,null,{"$f":"SUM(COUNTIF(RESPUESTAS!Q:Q,GRÁFICOS!B111),COUNTIF(RESPUESTAS!S:S,GRÁFICOS!B111))","v":7}]
[null,"d","Contaminación del agua",null,null,null,{"$f":"SUM(COUNTIF(RESPUESTAS!Q:Q,GRÁFICOS!B112),COUNTIF(RESPUESTAS!S:S,GRÁFICOS!B112))","v":34}]
[null,"e","Contaminación del suelo",null,null,null,{"$f":"SUM(COUNTIF(RESPUESTAS!Q:Q,GRÁFICOS!B113),COUNTIF(RESPUESTAS!S:S,GRÁFICOS!B113))","v":15}]
[null,"f","Gestión de Residuos Sólidos Domiciliarios",null,null,null,{"$f":"SUM(COUNTIF(RESPUESTAS!Q:Q,GRÁFICOS!B114),COUNTIF(RESPUESTAS!S:S,GRÁFICOS!B114))","v":15}]
[null,"g","Microbasurales",null,null,null,{"$f":"SUM(COUNTIF(RESPUESTAS!Q:Q,GRÁFICOS!B115),COUNTIF(RESPUESTAS!S:S,GRÁFICOS!B115))","v":62}]
[null,"h","Pérdida de flora y/o fauna",null,null,null,{"$f":"SUM(COUNTIF(RESPUESTAS!Q:Q,GRÁFICOS!B116),COUNTIF(RESPUESTAS!S:S,GRÁFICOS!B116))","v":19}]
[null,"i","Tenencia irresponsable de mascotas",null,null,null,{"$f":"SUM(COUNTIF(RESPUESTAS!Q:Q,GRÁFICOS!B117),COUNTIF(RESPUESTAS!S:S,GRÁFICOS!B117))","v":22}]
[null,"j","Riesgos por incendios y otros riesgos naturales",null,null,null,{"$f":"SUM(COUNTIF(RESPUESTAS!Q:Q,GRÁFICOS!B118),COUNTIF(RESPUESTAS!S:S,GRÁFICOS!B118))","v":2}]
[null,"k","Otro: Indicar",null,null,null,{"$f":"SUM(COUNTIF(RESPUESTAS!Q:Q,GRÁFICOS!B119),COUNTIF(RESPUESTAS!S:S,GRÁFICOS!B119))","v":0}]
[]
[]
[]
[]
[]
[null,null,"7.- Cómo evaluaría la contribución que hace el municipio a la protección o cuidado del medio ambiente en su comuna:"]
[]
[]
[]
[]
[]
[null,null,"Detalle",null,null,"Conteo"]
[null,"a","Muy Buena",null,null,{"$f":"COUNTIF(RESPUESTAS!U:U,B132)","v":1}]
[null,"b","Buena",null,null,{"$f":"COUNTIF(RESPUESTAS!U:U,B133)","v":41}]
[null,"c","Regular",null,null,{"$f":"COUNTIF(RESPUESTAS!U:U,B134)","v":52}]
[null,"d","Mala",null,null,{"$f":"COUNTIF(RESPUESTAS!U:U,B135)","v":8}]
[null,"e","Muy Mala",null,null,{"$f":"COUNTIF(RESPUESTAS!U:U,B136)","v":3}]
[]
[]
[]
[]
[]
[]
[]
[]
[]
[]
[]
[null,null,"8.-  En una escala de 1 a 5, donde 1 significa \"muy mal\" y 5 \"muy bien\", ¿Cómo evalúa en la práctica los siguientes servicios municipales?"]
[null,null,null,null,null,null,null,1,2,3,4,5,"No Sabe / No responde"]
[null,null,"Criterio",null,null,null,null,"Muy Mal","Mal","Ni mal ni bien","Bien","Muy Bien","No Sabe / No responde","TOTAL"]
[null,null,"a) Retiro de residuos sólidos domiciliarios (o basura)",null,null,null,null,{"$f":"COUNTIF(RESPUESTAS!$V:$V,GRÁFICOS!H149)","v":6},{"$f":"COUNTIF(RESPUESTAS!$V:$V,GRÁFICOS!I149)","v":5},{"$f":"COUNTIF(RESPUESTAS!$V:$V,GRÁFICOS!J149)","v":17},{"$f":"COUNTIF(RESPUESTAS!$V:$V,GRÁFICOS!K149)","v":51},{"$f":"COUNTIF(RESPUESTAS!$V:$V,GRÁFICOS!L149)","v":24},{"$f":"COUNTIF(RESPUESTAS!$V:$V,GRÁFICOS!M149)","v":4},{"$f":"SUM(H151:M151)","v":107}]
[null,null,"%",null,null,null,null,{"$f":"H151/$N$151*100","v":5.6074766355140184},{"$f":"I151/$N$151*100","v":4.6728971962616823},{"$f":"J151/$N$151*100","v":15.887850467289718},47.663551401869157,22.429906542056074,3.7383177570093453,{"$f":"SUM(H152:M152)","v":99.999999999999986}]
[null,null,"b) Mantención de áreas verdes",null,null,null,null,{"$f":"COUNTIF(RESPUESTAS!$W:$W,GRÁFICOS!H149)","v":6},{"$f":"COUNTIF(RESPUESTAS!$W:$W,GRÁFICOS!I149)","v":4},{"$f":"COUNTIF(RESPUESTAS!$W:$W,GRÁFICOS!J149)","v":15},{"$f":"COUNTIF(RESPUESTAS!$W:$W,GRÁFICOS!K149)","v":46},{"$f":"COUNTIF(RESPUESTAS!$W:$W,GRÁFICOS!L149)","v":36},{"$f":"COUNTIF(RESPUESTAS!$W:$W,GRÁFICOS!M149)","v":0},{"$f":"SUM(H153:M153)","v":107}]
[null,null,"%",null,null,null,null,{"$f":"H153/$N$153*100","v":5.6074766355140184},{"$f":"I153/$N$153*100","v":3.7383177570093453},14.018691588785046,42.990654205607477,33.644859813084111,0,100]
[null,null,"c) Mantención del entorno limpio",null,null,null,null,{"$f":"COUNTIF(RESPUESTAS!$X:$X,GRÁFICOS!H149)","v":3},{"$f":"COUNTIF(RESPUESTAS!$X:$X,GRÁFICOS!I149)","v":7},{"$f":"COUNTIF(RESPUESTAS!$X:$X,GRÁFICOS!J149)","v":34},{"$f":"COUNTIF(RESPUESTAS!$X:$X,GRÁFICOS!K149)","v":43},{"$f":"COUNTIF(RESPUESTAS!$X:$X,GRÁFICOS!L149)","v":17},{"$f":"COUNTIF(RESPUESTAS!$X:$X,GRÁFICOS!M149)","v":3},107]
[null,null,"%",null,null,null,null,{"$f":"H155/$N$155*100","v":2.8037383177570092},{"$f":"I155/$N$155*100","v":6.5420560747663545},31.775700934579437,40.186915887850468,15.887850467289718,2.8037383177570092,100]
[null,null,"d) Retiro y prevención de microbasurales",null,null,null,null,{"$f":"COUNTIF(RESPUESTAS!$Y:$Y,GRÁFICOS!H149)","v":12},{"$f":"COUNTIF(RESPUESTAS!$Y:$Y,GRÁFICOS!I149)","v":16},{"$f":"COUNTIF(RESPUESTAS!$Y:$Y,GRÁFICOS!J149)","v":27},{"$f":"COUNTIF(RESPUESTAS!$Y:$Y,GRÁFICOS!K149)","v":33},{"$f":"COUNTIF(RESPUESTAS!$Y:$Y,GRÁFICOS!L149)","v":13},{"$f":"COUNTIF(RESPUESTAS!$Y:$Y,GRÁFICOS!M149)","v":6},107]
[null,null,"%",null,null,null,null,{"$f":"H157/$N$157*100","v":11.214953271028037},{"$f":"I157/$N$157*100","v":14.953271028037381},25.233644859813083,30.841121495327101,12.149532710280374,5.6074766355140184,99.999999999999986]
[null,null,"e) Fiscalización ambiental",null,null,null,null,{"$f":"COUNTIF(RESPUESTAS!$Z:$Z,GRÁFICOS!H149)","v":18},{"$f":"COUNTIF(RESPUESTAS!$Z:$Z,GRÁFICOS!I149)","v":24},{"$f":"COUNTIF(RESPUESTAS!$Z:$Z,GRÁFICOS!J149)","v":43},{"$f":"COUNTIF(RESPUESTAS!$Z:$Z,GRÁFICOS!K149)","v":13},{"$f":"COUNTIF(RESPUESTAS!$Z:$Z,GRÁFICOS!L149)","v":1},{"$f":"COUNTIF(RESPUESTAS!$Z:$Z,GRÁFICOS!M149)","v":8},107]
[null,null,"%",null,null,null,null,{"$f":"H159/$N$159*100","v":16.822429906542055},{"$f":"I159/$N$159*100","v":22.429906542056074},40.186915887850468,12.149532710280374,0.93457943925233633,7.4766355140186906,99.999999999999986]
[null,null,"f) Gestión en fomento de tenencia responsable de mascotas.",null,null,null,null,{"$f":"COUNTIF(RESPUESTAS!$AA:$AA,GRÁFICOS!H149)","v":14},{"$f":"COUNTIF(RESPUESTAS!$AA:$AA,GRÁFICOS!I149)","v":27},{"$f":"COUNTIF(RESPUESTAS!$AA:$AA,GRÁFICOS!J149)","v":39},{"$f":"COUNTIF(RESPUESTAS!$AA:$AA,GRÁFICOS!K149)","v":20},{"$f":"COUNTIF(RESPUESTAS!$AA:$AA,GRÁFICOS!L149)","v":2},{"$f":"COUNTIF(RESPUESTAS!$AA:$AA,GRÁFICOS!M149)","v":5},107]
[null,null,"%",null,null,null,null,{"$f":"H161/$N$161*100","v":13.084112149532709},{"$f":"I161/$N$161*100","v":25.233644859813083},36.44859813084112,18.691588785046729,1.8691588785046727,4.6728971962616823,100]
[null,null,"g) Atención de denuncias ambientales (sólo si ha denunciado)",null,null,null,null,{"$f":"COUNTIF(RESPUESTAS!$AB:$AB,GRÁFICOS!H149)","v":4},{"$f":"COUNTIF(RESPUESTAS!$AB:$AB,GRÁFICOS!I149)","v":10},{"$f":"COUNTIF(RESPUESTAS!$AB:$AB,GRÁFICOS!J149)","v":23},{"$f":"COUNTIF(RESPUESTAS!$AB:$AB,GRÁFICOS!K149)","v":13},{"$f":"COUNTIF(RESPUESTAS!$AB:$AB,GRÁFICOS!L149)","v":7},{"$f":"COUNTIF(RESPUESTAS!$AB:$AB,GRÁFICOS!M149)","v":50},107]
[null,null,"%",null,null,null,null,{"$f":"H163/$N$163*100","v":3.7383177570093453},{"$f":"I163/$N$163*100","v":9.3457943925233646},21.495327102803738,12.149532710280374,6.5420560747663545,46.728971962616825,100]
[null,null,"h) Retiro de escombros generados en el domicilio. (sólo si ha solicitado)",null,null,null,null,{"$f":"COUNTIF(RESPUESTAS!$AC:$AC,GRÁFICOS!H149)","v":4},{"$f":"COUNTIF(RESPUESTAS!$AC:$AC,GRÁFICOS!I149)","v":9},{"$f":"COUNTIF(RESPUESTAS!$AC:$AC,GRÁFICOS!J149)","v":9},{"$f":"COUNTIF(RESPUESTAS!$AC:$AC,GRÁFICOS!K149)","v":43},{"$f":"COUNTIF(RESPUESTAS!$AC:$AC,GRÁFICOS!L149)","v":12},{"$f":"COUNTIF(RESPUESTAS!$AC:$AC,GRÁFICOS!M149)","v":30},107]
[null,null,"%",null,null,null,null,{"$f":"H165/$N$165*100","v":3.7383177570093453},{"$f":"I165/$N$165*100","v":8.4112149532710276},8.4112149532710276,40.186915887850468,11.214953271028037,28.037383177570092,100]
[null,null,"i) Otros (agregar si el municipio quiere evaluar otros servicios)",null,null,null,null,{"$f":"COUNTIF(RESPUESTAS!$AD:$AD,GRÁFICOS!H149)","v":2},{"$f":"COUNTIF(RESPUESTAS!$AD:$AD,GRÁFICOS!I149)","v":1},{"$f":"COUNTIF(RESPUESTAS!$AD:$AD,GRÁFICOS!J149)","v":1},{"$f":"COUNTIF(RESPUESTAS!$AD:$AD,GRÁFICOS!K149)","v":6},{"$f":"COUNTIF(RESPUESTAS!$AD:$AD,GRÁFICOS!L149)","v":5},{"$f":"COUNTIF(RESPUESTAS!$AD:$AD,GRÁFICOS!M149)","v":91},106]
[null,null,"%",null,null,null,null,{"$f":"H167/$N$167*100","v":1.8867924528301887},{"$f":"I167/$N$167*100","v":0.94339622641509435},0.94339622641509435,5.6603773584905666,4.716981132075472,85.84905660377359,100]
[]
[]
[]
[]
[]
[]
[]
[]
[]
[]
[]
[]
[]
[]
[]
[]
[]
[]
[]
[]
[]
[]
[]
[]
[]
[]
[]
[null,null,"Recordar que la información emanada de está encuesta y su respectivo análisis deberá ser publicada y puesta a disposición de toda la comunidad, a través de la página web o cualquier otro medio que disponga el municipio."]